[Event "Sunway Sitges Chess Festival"]
[Date "2024.12.21"]
[White "Torres Rosas, Luis Carlos"]
[Black "Velten, Paul"]
[WhiteElo "2277"]
[BlackElo "2501"]
[Round "5.15"]
[Result "1-0"]
[TimeControl "40/5400+30:1800+30"]

1. d4 {[%clk 1:29:24]} 1... Nf6 2. c4 e6 3. Nf3 b6 4. g3 Ba6 5. Qc2 c6 6. Bg2 d5
7. b3 {[%clk 1:05:15]} 7... Nbd7 8. O-O Rc8 9. Nbd2 c5 {[%clk 1:26:34]} 10. Bb2
cxd4 11. Nxd4 Bc5 12. a4 Bxd4 {[%clk 1:15:30]} 13. Bxd4 {[%clk 0:45:51]} 13...
dxc4 {[%clk 1:04:59]} 14. Nxc4 O-O {[%clk 1:00:23]} 15. Rfd1 {[%clk 0:32:37]}
15... Qe7 {[%clk 0:53:04]} 16. Bb2 Rfd8 {[%clk 0:50:16]} 17. Ba3 {[%clk
0:23:42]} 17... Qe8 {[%clk 0:43:49]} 18. Qa2 Bxc4 {[%clk 0:43:47]} 19. bxc4
{[%clk 0:18:11]} 19... Ne5 {[%clk 0:38:51]} 20. Rxd8 Qxd8 {[%clk 0:37:42]} 21.
Rc1 Qd4 {[%clk 0:35:49]} 22. Bb2 Qd2 {[%clk 0:33:55]} 23. Bf3 Nfg4 {[%clk
0:29:31]} 24. Bxg4 {[%clk 0:06:39]} 24... Nxg4 {[%clk 0:29:00]} 25. h3 {[%clk
0:06:43]} 25... Nf6 {[%clk 0:28:21]} 26. Qa1 {[%clk 0:06:34]} 26... Ne4 {[%clk
0:51:20]} 27. Re1 {[%clk 0:05:46]} 27... Qg5 {[%clk 0:48:37]} 28. Bd4 Nxg3
{[%clk 0:48:18]} 29. fxg3 Qxg3+ {[%clk 0:47:40]} 30. Kf1 {[%clk 0:04:40]} 30...
Qxh3+ {[%clk 0:44:25]} 31. Kg1 {[%clk 0:01:56]} 31... e5 {[%clk 0:43:30]} 32.
Bxe5 {[%clk 0:01:31]} 32... Rc6 {[%clk 0:42:31]} 33. Rd1 {[%clk 0:01:01]} 33...
Rg6+ {[%clk 0:42:27]} 34. Kf2 Rg2+ {[%clk 0:42:22]} 35. Ke1 Qh4+ {[%clk
0:42:18]} 36. Kd2 Qxc4 {[%clk 0:42:06]} 37. Re1 Rg4 {[%clk 0:41:01]} 38. Bc3 Rg6
{[%clk 0:40:48]} 39. Bd4 Rg4 {[%clk 0:40:35]} 40. Bc3 h5 {[%clk 0:33:23]} 41.
Rf1 Rg2 {[%clk 0:33:17]} 42. Qd1 h4 {[%clk 0:33:10]} 43. Rf3 Qg4 {[%clk
0:28:33]} 44. Re3 {[%clk 0:22:36]} 44... h3 {[%clk 0:25:32]} 45. Re8+ Kh7 {[%clk
0:24:32]} 46. Qc2+ f5 {[%clk 0:22:02]} 47. Qb3 Qg5+ {[%clk 0:21:22]} 48. Kc2 Kg6
{[%clk 0:14:10]} 49. Qe6+ Kh5 {[%clk 0:13:32]} 50. Qd5 Rf2 {[%clk 0:08:31]} 51.
Rh8+ Kg4 {[%clk 0:08:28]} 52. Qd4+ {[%clk 0:06:28]} 52... Qf4 {[%clk 0:08:22]}
53. Qxg7+ {[%clk 0:06:51]} 53... Qg5 {[%clk 0:05:36]} 54. Qd4+ Qf4 {[%clk
0:04:41]} 55. Rg8+ {[%clk 0:04:11]} 55... Kh5 {[%clk 0:04:03]} 56. Qh8+ Qh6
{[%clk 0:03:55]} 57. Qe5 {[%clk 0:04:24]} 57... h2 {[%clk 0:02:40]} 58. Rh8
{[%clk 0:03:37]} 58... Qxh8 {[%clk 0:02:30]} 59. Qxh8+ Kg4 {[%clk 0:01:52]} 60.
Kd3 f4 {[%clk 0:01:11]} 61. Be1 {[%clk 0:03:37]} 61... Rf1 {[%clk 0:00:24]} 62.
Qh4+ Kf5 {[%clk 0:43:34]} 63. Qh3+ 1-0

[Variant "Standard"]
[Site "Europe Echecs"]

[Event "Sunway Sitges Chess Festival"]
[Date "2024.12.21"]
[White "Lopez Martinez, Josep Manuel"]
[Black "Van Zyl-Rudd, Jack"]
[WhiteElo "2455"]
[BlackElo "2268"]
[Round "5.16"]
[Result "1/2-1/2"]
[TimeControl "40/5400+30:1800+30"]

1. d4 {[%clk 1:30:54]} 1... Nf6 {[%clk 1:25:16]} 2. c4 {[%clk 1:30:11]} 2... e6
{[%clk 1:24:38]} 3. Nc3 {[%clk 1:28:53]} 3... Bb4 {[%clk 1:24:43]} 4. Qc2 {[%clk
1:28:47]} 4... b6 {[%clk 1:24:38]} 5. a3 {[%clk 1:27:50]} 5... Bxc3+ {[%clk
1:25:02]} 6. Qxc3 {[%clk 1:28:15]} 6... Bb7 {[%clk 1:25:23]} 7. Nf3 {[%clk
1:28:30]} 7... O-O {[%clk 1:23:02]} 8. e3 {[%clk 1:28:20]} 8... d5 {[%clk
1:21:28]} 9. b3 {[%clk 1:26:36]} 9... Nbd7 {[%clk 1:04:12]} 10. Be2 {[%clk
1:25:43]} 10... c5 {[%clk 1:03:45]} 11. O-O {[%clk 1:26:01]} 11... Rc8 {[%clk
1:02:45]} 12. a4 {[%clk 1:25:39]} 12... Qc7 {[%clk 0:51:50]} 13. Ba3 {[%clk
1:17:41]} 13... Rfd8 {[%clk 0:50:32]} 14. cxd5 {[%clk 1:14:30]} 14... Bxd5
{[%clk 0:47:42]} 15. Rfc1 {[%clk 1:01:11]} 15... Qb7 {[%clk 0:47:12]} 16. Qb2
{[%clk 1:01:14]} 16... cxd4 {[%clk 0:46:25]} 17. exd4 {[%clk 1:01:37]} 17... Nf8
{[%clk 0:41:25]} 18. Ne1 {[%clk 1:00:13]} 18... Ng6 {[%clk 0:40:38]} 19. Bf1
{[%clk 1:00:37]} 19... h6 {[%clk 0:30:30]} 20. b4 {[%clk 0:59:59]} 20... Nh4 21.
Rd1 Rb8 22. Rdc1 Rbc8 23. Rd1 Rb8 24. Rdc1 {[%clk 1:00:30]} 24... Rbc8 1/2-1/2

[Variant "Standard"]
[Site "Europe Echecs"]

[Event "Sunway Sitges Chess Festival"]
[Date "2024.12.21"]
[White "Girel, Joseph"]
[Black "Piccoli, Lucas Fonseca"]
[WhiteElo "2494"]
[BlackElo "2270"]
[Round "5.17"]
[Result "1-0"]
[TimeControl "40/5400+30:1800+30"]

1. d4 {[%clk 1:30:38]} 1... Nf6 {[%clk 1:30:51]} 2. c4 {[%clk 1:30:53]} 2... e6
{[%clk 1:31:14]} 3. Nc3 {[%clk 1:30:20]} 3... Bb4 {[%clk 1:31:33]} 4. e3 {[%clk
1:30:32]} 4... O-O {[%clk 1:31:54]} 5. a3 {[%clk 1:30:32]} 5... Bxc3+ {[%clk
1:31:52]} 6. bxc3 {[%clk 1:30:58]} 6... c5 {[%clk 1:31:03]} 7. Bd3 {[%clk
1:25:58]} 7... Nc6 {[%clk 1:22:43]} 8. Rb1 {[%clk 1:30:32]} 8... d6 {[%clk
1:22:10]} 9. Ne2 {[%clk 1:30:04]} 9... e5 {[%clk 1:22:09]} 10. e4 {[%clk
1:29:18]} 10... h6 {[%clk 1:18:42]} 11. O-O {[%clk 1:26:16]} 11... b6 {[%clk
1:10:03]} 12. a4 {[%clk 1:17:25]} 12... Ba6 {[%clk 1:12:47]} 13. d5 {[%clk
1:17:18]} 13... Ne7 {[%clk 1:04:21]} 14. Ng3 {[%clk 1:06:09]} 14... Bc8 {[%clk
1:00:12]} 15. f3 {[%clk 1:00:15]} 15... Ng6 {[%clk 0:57:03]} 16. Nf5 {[%clk
1:02:03]} 16... Bxf5 {[%clk 0:53:55]} 17. exf5 {[%clk 1:02:21]} 17... Nf4 {[%clk
0:54:21]} 18. Bc2 {[%clk 1:00:11]} 18... Nd7 {[%clk 0:50:14]} 19. Rb2 {[%clk
0:56:55]} 19... Rb8 {[%clk 0:49:33]} 20. Bb1 {[%clk 0:54:12]} 20... Re8 {[%clk
0:45:27]} 21. g3 {[%clk 0:49:50]} 21... Nh3+ {[%clk 0:44:02]} 22. Kh1 {[%clk
0:49:46]} 22... Ng5 {[%clk 0:43:36]} 23. h4 {[%clk 0:48:00]} 23... Nh7 {[%clk
0:44:01]} 24. Rg1 {[%clk 0:46:28]} 24... e4 {[%clk 0:37:19]} 25. Bxe4 {[%clk
0:42:43]} 25... Ne5 {[%clk 0:35:53]} 26. Qf1 {[%clk 0:39:31]} 26... Qd7 {[%clk
0:33:51]} 27. Bc2 {[%clk 0:38:09]} 27... Qd8 {[%clk 0:28:15]} 28. Bb1 {[%clk
0:37:02]} 28... Qd7 {[%clk 0:30:14]} 29. Ra2 {[%clk 0:36:11]} 29... a6 {[%clk
0:27:49]} 30. g4 {[%clk 0:34:14]} 30... b5 {[%clk 0:30:10]} 31. cxb5 {[%clk
0:34:10]} 31... axb5 {[%clk 0:30:26]} 32. f4 {[%clk 0:34:05]} 32... bxa4 {[%clk
0:30:15]} 33. Bc2 {[%clk 0:28:16]} 33... Qb7 {[%clk 0:29:22]} 34. Bxa4 {[%clk
0:28:10]} 34... Qxd5+ {[%clk 0:27:59]} 35. Qg2 {[%clk 0:27:59]} 35... Qxg2+
{[%clk 0:27:13]} 36. Rgxg2 {[%clk 0:24:07]} 36... Nd3 {[%clk 0:25:47]} 37. Bxe8
{[%clk 0:23:53]} 37... Nxc1 {[%clk 0:26:12]} 38. Ra1 {[%clk 0:22:57]} 38... Nd3
{[%clk 0:17:00]} 39. Bc6 {[%clk 0:23:09]} 39... Nxf4 {[%clk 0:17:23]} 40. Rd2
{[%clk 0:53:30]} 40... Nf6 {[%clk 0:45:33]} 41. Rf1 {[%clk 0:51:43]} 41... Rb6
{[%clk 0:43:07]} 42. Ba8 {[%clk 0:45:15]} 42... Rb8 {[%clk 0:32:32]} 43. Bc6
{[%clk 0:40:00]} 43... Rb6 {[%clk 0:39:01]} 44. Rxd6 {[%clk 0:40:22]} 44... Ne2
{[%clk 0:38:37]} 45. Re1 {[%clk 0:40:39]} 45... Rb2 {[%clk 0:33:27]} 46. Bf3
{[%clk 0:40:17]} 46... Nf4 {[%clk 0:30:29]} 47. g5 {[%clk 0:36:59]} 47... hxg5
{[%clk 0:25:58]} 48. hxg5 {[%clk 0:37:16]} 48... Nh3 {[%clk 0:12:21]} 49. Rd8+
{[%clk 0:37:24]} 49... Kh7 {[%clk 0:12:45]} 50. gxf6 {[%clk 0:37:22]} 50... Nf2+
{[%clk 0:13:09]} 51. Kg2 {[%clk 0:37:44]} 51... Nd3+ {[%clk 0:13:31]} 52. Re2
{[%clk 0:38:02]} 52... Nf4+ {[%clk 0:13:46]} 53. Kf1 {[%clk 0:37:57]} 53... Nxe2
{[%clk 0:13:44]} 54. Bxe2 {[%clk 0:38:19]} 1-0

[Variant "Standard"]
[Site "Europe Echecs"]

[Event "Sunway Sitges Chess Festival"]
[Date "2024.12.21"]
[White "Chia, Yu Zhe Ashton"]
[Black "Travadon, Loic"]
[WhiteElo "2252"]
[BlackElo "2428"]
[Round "5.18"]
[Result "1/2-1/2"]
[TimeControl "40/5400+30:1800+30"]

1. e4 {[%clk 1:25:59]} 1... c5 {[%clk 1:30:15]} 2. Nf3 {[%clk 1:26:02]} 2... d6
{[%clk 1:30:20]} 3. g3 {[%clk 1:26:16]} 3... Nc6 {[%clk 1:27:30]} 4. Bg2 {[%clk
1:26:28]} 4... Nf6 {[%clk 1:25:41]} 5. d3 {[%clk 1:26:44]} 5... g6 {[%clk
1:24:58]} 6. O-O {[%clk 1:26:51]} 6... Bg7 {[%clk 1:25:05]} 7. Nh4 {[%clk
1:27:13]} 7... Bg4 {[%clk 1:21:51]} 8. f3 {[%clk 1:25:27]} 8... Bd7 {[%clk
1:22:10]} 9. Nc3 {[%clk 1:24:26]} 9... Rb8 {[%clk 1:22:11]} 10. a4 {[%clk
1:24:44]} 10... a6 {[%clk 1:21:46]} 11. Nd5 {[%clk 1:18:45]} 11... Nxd5 {[%clk
1:18:22]} 12. exd5 {[%clk 1:19:01]} 12... Nd4 {[%clk 1:18:38]} 13. c3 {[%clk
1:16:02]} 13... Nf5 {[%clk 1:18:49]} 14. Nxf5 {[%clk 1:16:20]} 14... Bxf5 {[%clk
1:19:14]} 15. Qe2 {[%clk 1:14:13]} 15... O-O {[%clk 1:18:18]} 16. Bg5 {[%clk
1:06:06]} 16... Bf6 {[%clk 1:11:17]} 17. Bxf6 {[%clk 1:03:14]} 17... exf6 {[%clk
1:11:41]} 18. Qd2 {[%clk 0:59:02]} 18... Re8 {[%clk 1:10:26]} 19. g4 {[%clk
0:58:43]} 19... Bd7 {[%clk 1:10:30]} 20. Qf4 {[%clk 0:59:07]} 20... Qb6 {[%clk
1:05:28]} 21. a5 {[%clk 0:45:40]} 21... Qxb2 {[%clk 1:04:34]} 22. Qxd6 {[%clk
0:46:04]} 22... Bb5 {[%clk 1:04:30]} 23. c4 {[%clk 0:45:29]} 23... Qd4+ {[%clk
1:03:47]} 24. Kh1 {[%clk 0:45:53]} 24... Rbd8 {[%clk 1:04:12]} 25. Qc7 {[%clk
0:46:01]} 25... Bd7 {[%clk 1:03:50]} 26. Rae1 {[%clk 0:45:53]} 26... Ba4 {[%clk
0:58:14]} 27. Re4 {[%clk 0:39:49]} 27... Qxd3 {[%clk 0:57:51]} 28. Qxc5 {[%clk
0:35:02]} 28... Rc8 {[%clk 0:57:12]} 29. Qd4 {[%clk 0:33:37]} 29... Qxd4 {[%clk
0:57:27]} 30. Rxd4 {[%clk 0:34:05]} 30... Bb3 {[%clk 0:57:36]} 31. f4 {[%clk
0:15:27]} 31... Bxc4 {[%clk 0:56:07]} 32. Rb1 {[%clk 0:15:25]} 32... Rc5 {[%clk
0:46:35]} 33. h3 {[%clk 0:13:11]} 33... Rd8 {[%clk 0:45:12]} 34. d6 {[%clk
0:13:03]} 34... Be6 {[%clk 0:44:59]} 35. Rxb7 {[%clk 0:12:16]} 35... Rxa5 {[%clk
0:45:09]} 36. Ra7 {[%clk 0:11:56]} 36... Ra1+ {[%clk 0:42:47]} 37. Kh2 {[%clk
0:12:25]} 37... Ra2 {[%clk 0:42:23]} 38. Kg3 {[%clk 0:12:40]} 38... Ra3+ {[%clk
0:41:09]} 39. Kh2 {[%clk 0:11:57]} 39... f5 {[%clk 0:39:49]} 40. g5 {[%clk
0:37:25]} 40... a5 {[%clk 1:09:15]} 41. Bc6 {[%clk 0:34:17]} 41... Kg7 {[%clk
1:06:38]} 42. Re7 {[%clk 0:31:15]} 42... Kf8 {[%clk 1:04:24]} 43. Ra7 {[%clk
0:31:39]} 43... Rc3 {[%clk 1:03:30]} 44. Bg2 {[%clk 0:27:37]} 44... Rc4 {[%clk
1:03:39]} 45. Rxc4 {[%clk 0:27:34]} 45... Bxc4 {[%clk 1:04:07]} 46. d7 {[%clk
0:27:04]} 46... Bb5 {[%clk 1:03:12]} 47. Rxa5 {[%clk 0:27:13]} 47... Bxd7 {[%clk
1:03:34]} 48. Ra8 {[%clk 0:24:36]} 48... Rxa8 {[%clk 1:03:33]} 49. Bxa8 {[%clk
0:25:04]} 49... f6 {[%clk 1:03:46]} 50. Kg3 {[%clk 0:24:47]} 50... fxg5 {[%clk
1:03:52]} 51. fxg5 {[%clk 0:25:14]} 51... Be6 {[%clk 1:04:04]} 52. Kf4 {[%clk
0:25:37]} 52... Ke7 {[%clk 1:04:27]} 53. Ke5 {[%clk 0:25:51]} 53... Bf7 {[%clk
1:04:51]} 54. Bc6 {[%clk 0:26:11]} 54... Be6 {[%clk 1:05:08]} 55. h4 {[%clk
0:26:33]} 55... Bf7 {[%clk 1:05:29]} 56. Bb5 {[%clk 0:26:55]} 56... Be6 {[%clk
1:05:54]} 57. Bc6 {[%clk 0:27:22]} 57... Bf7 {[%clk 1:06:19]} 58. Bb5 {[%clk
0:27:50]} 58... Be6 {[%clk 1:06:45]} 59. Bc6 {[%clk 0:28:17]} 1/2-1/2

[Variant "Standard"]
[Site "Europe Echecs"]

[Event "Sunway Sitges Chess Festival"]
[Date "2024.12.21"]
[White "Gormally, Daniel W"]
[Black "Adharsh K"]
[WhiteElo "2424"]
[BlackElo "2235"]
[Round "5.19"]
[Result "1-0"]
[TimeControl "40/5400+30:1800+30"]

1. e4 {[%clk 1:30:56]} 1... c5 {[%clk 1:30:27]} 2. Nf3 {[%clk 1:31:15]} 2... Nc6
{[%clk 1:30:33]} 3. d4 {[%clk 1:31:35]} 3... cxd4 {[%clk 1:30:48]} 4. Nxd4
{[%clk 1:31:58]} 4... Nf6 {[%clk 1:31:12]} 5. Nc3 {[%clk 1:32:23]} 5... d6
{[%clk 1:31:28]} 6. f3 {[%clk 1:32:20]} 6... e5 {[%clk 1:31:35]} 7. Nb3 {[%clk
1:31:38]} 7... Be7 {[%clk 1:31:59]} 8. Be3 {[%clk 1:31:12]} 8... Be6 {[%clk
1:32:14]} 9. Nd5 {[%clk 1:30:55]} 9... Bxd5 {[%clk 1:29:54]} 10. exd5 {[%clk
1:29:59]} 10... Nb8 {[%clk 1:30:07]} 11. Be2 {[%clk 1:29:10]} 11... O-O {[%clk
1:30:27]} 12. O-O {[%clk 1:28:52]} 12... Nbd7 {[%clk 1:21:20]} 13. Qd2 {[%clk
1:28:03]} 13... Qc7 {[%clk 1:12:45]} 14. c4 {[%clk 1:24:54]} 14... a5 {[%clk
1:11:51]} 15. Rac1 {[%clk 1:25:09]} 15... a4 {[%clk 1:12:10]} 16. Na1 {[%clk
1:25:34]} 16... Rfc8 {[%clk 1:12:21]} 17. Nc2 {[%clk 1:23:56]} 17... Nc5 {[%clk
1:10:03]} 18. Na3 {[%clk 1:24:03]} 18... Qd7 {[%clk 1:10:07]} 19. Nb5 {[%clk
1:23:34]} 19... Bf8 {[%clk 1:07:00]} 20. g3 {[%clk 1:17:14]} 20... b6 {[%clk
0:59:03]} 21. Kg2 {[%clk 1:17:10]} 21... Re8 {[%clk 0:57:03]} 22. Qd1 {[%clk
1:13:57]} 22... Rac8 {[%clk 0:51:24]} 23. b4 {[%clk 1:10:58]} 23... axb3 {[%clk
0:51:50]} 24. axb3 {[%clk 1:11:24]} 24... e4 {[%clk 0:51:47]} 25. b4 {[%clk
1:09:00]} 25... exf3+ {[%clk 0:51:45]} 26. Rxf3 {[%clk 1:09:24]} 26... Nce4
{[%clk 0:51:37]} 27. Bd3 {[%clk 1:05:31]} 27... h5 {[%clk 0:48:31]} 28. Bd4
{[%clk 1:02:58]} 28... Ra8 {[%clk 0:30:43]} 29. Bxf6 {[%clk 0:55:53]} 29... gxf6
{[%clk 0:12:19]} 30. Rc2 {[%clk 0:53:18]} 30... Bg7 {[%clk 0:09:15]} 31. Rf4
{[%clk 0:49:33]} 31... Ng5 {[%clk 0:08:56]} 32. Bf5 {[%clk 0:48:40]} 32... Qe7
{[%clk 0:09:05]} 33. h4 {[%clk 0:47:53]} 33... Qe5 {[%clk 0:08:52]} 34. Nd4
{[%clk 0:37:01]} 34... Ra3 {[%clk 0:08:08]} 35. Re2 {[%clk 0:36:47]} 35... Re3
{[%clk 0:08:32]} 36. Rxe3 {[%clk 0:36:23]} 36... Qxe3 {[%clk 0:08:58]} 37. hxg5
{[%clk 0:31:48]} 37... fxg5 {[%clk 0:09:15]} 38. Nc2 {[%clk 0:32:13]} 38... Qc3
{[%clk 0:09:10]} 39. Rf2 {[%clk 0:27:24]} 39... Qxc4 {[%clk 0:06:51]} 40. Qxh5
{[%clk 0:56:40]} 40... Qxd5+ {[%clk 0:37:12]} 41. Kh2 {[%clk 0:56:15]} 41... Kf8
{[%clk 0:35:52]} 42. Qxg5 {[%clk 0:51:45]} 42... b5 {[%clk 0:34:32]} 43. Ne3
{[%clk 0:45:48]} 43... Qd4 {[%clk 0:34:32]} 44. Ng4 {[%clk 0:42:59]} 44... Qxb4
{[%clk 0:34:26]} 45. Bg6 {[%clk 0:42:02]} 45... Re7 {[%clk 0:35:21]} 46. Rxf7+
{[%clk 0:41:17]} 1-0

[Variant "Standard"]
[Site "Europe Echecs"]

[Event "Sunway Sitges Chess Festival"]
[Date "2024.12.21"]
[White "Lee, Jun Wei"]
[Black "Leisch, Lukas"]
[WhiteElo "2238"]
[BlackElo "2417"]
[Round "5.20"]
[Result "1-0"]
[TimeControl "40/5400+30:1800+30"]

1. d4 {[%clk 1:30:58]} 1... e6 {[%clk 1:30:54]} 2. c4 {[%clk 1:31:12]} 2... Nf6
{[%clk 1:31:17]} 3. Nc3 {[%clk 1:31:25]} 3... Bb4 {[%clk 1:31:35]} 4. e3 {[%clk
1:31:27]} 4... O-O {[%clk 1:30:58]} 5. Bd2 {[%clk 1:31:18]} 5... d5 {[%clk
1:31:08]} 6. Nf3 {[%clk 1:29:53]} 6... b6 {[%clk 1:31:08]} 7. cxd5 {[%clk
1:29:20]} 7... exd5 {[%clk 1:31:28]} 8. Rc1 {[%clk 1:18:42]} 8... Re8 {[%clk
1:29:08]} 9. Bd3 {[%clk 1:11:45]} 9... Bf8 {[%clk 1:26:08]} 10. Ne5 {[%clk
1:17:15]} 10... c5 {[%clk 1:18:29]} 11. O-O {[%clk 1:15:54]} 11... Bb7 {[%clk
1:04:20]} 12. f4 {[%clk 1:08:24]} 12... Nc6 {[%clk 1:13:30]} 13. Ne2 {[%clk
0:59:01]} 13... Rc8 {[%clk 1:04:11]} 14. Be1 {[%clk 0:56:01]} 14... Ne4 {[%clk
0:52:05]} 15. Kh1 {[%clk 0:49:51]} 15... f5 {[%clk 0:53:22]} 16. Bb5 {[%clk
0:28:24]} 16... Re6 {[%clk 0:50:33]} 17. Ng3 {[%clk 0:19:55]} 17... Nxg3+ {[%clk
0:47:44]} 18. Bxg3 {[%clk 0:20:20]} 18... Nb8 {[%clk 0:46:25]} 19. Bd3 {[%clk
0:15:44]} 19... g6 {[%clk 0:46:02]} 20. Rg1 {[%clk 0:15:44]} 20... Rc7 {[%clk
0:42:44]} 21. Bf2 {[%clk 0:14:01]} 21... h5 {[%clk 0:35:02]} 22. h3 {[%clk
0:07:51]} 22... Nd7 {[%clk 0:33:38]} 23. g4 {[%clk 0:09:06]} 23... Nxe5 {[%clk
0:30:59]} 24. fxe5 {[%clk 0:09:35]} 24... hxg4 {[%clk 0:30:51]} 25. hxg4 {[%clk
0:09:36]} 25... Rh7+ {[%clk 0:28:06]} 26. Kg2 {[%clk 0:10:04]} 26... Qg5 {[%clk
0:27:50]} 27. Kf1 {[%clk 0:07:23]} 27... f4 {[%clk 0:26:53]} 28. Qf3 {[%clk
0:07:11]} 28... Rf7 {[%clk 0:20:56]} 29. Bf5 {[%clk 0:04:12]} 29... Ba6+ {[%clk
0:20:46]} 30. Ke1 {[%clk 0:04:41]} 30... Rxf5 {[%clk 0:16:28]} 31. gxf5 {[%clk
0:05:10]} 31... Qxf5 {[%clk 0:16:51]} 32. Qg4 {[%clk 0:02:33]} 32... Qxg4 {[%clk
0:14:06]} 33. Rxg4 {[%clk 0:03:02]} 33... fxe3 {[%clk 0:14:28]} 34. Bxe3 {[%clk
0:-4:-52]} 34... Bd3 {[%clk 0:05:56]} 35. Kf2 {[%clk 0:01:18]} 35... c4 {[%clk
0:05:09]} 36. Rf4 {[%clk 0:00:54]} 36... Bg7 {[%clk 0:04:52]} 37. Ke1 {[%clk
0:00:39]} 37... b5 {[%clk 0:04:52]} 38. a3 {[%clk 0:00:45]} 38... a5 {[%clk
0:04:10]} 39. Bd2 {[%clk 0:00:38]} 39... Ra6 {[%clk 0:03:41]} 40. Ra1 {[%clk
0:30:37]} 40... Ra7 {[%clk 0:30:55]} 41. Rf3 {[%clk 0:28:22]} 41... Be4 {[%clk
0:28:44]} 42. Rf2 {[%clk 0:27:53]} 42... Bd3 {[%clk 0:27:04]} 43. Bg5 {[%clk
0:25:15]} 43... Bf5 {[%clk 0:22:20]} 44. Ke2 {[%clk 0:23:18]} 44... Ra8 {[%clk
0:15:26]} 45. Rh2 {[%clk 0:17:21]} 45... Rc8 {[%clk 0:15:09]} 46. Bd2 {[%clk
0:15:58]} 46... Bd3+ {[%clk 0:13:53]} 47. Kf3 {[%clk 0:15:14]} 47... Be4+ {[%clk
0:12:39]} 48. Kg3 {[%clk 0:15:35]} 48... Ra8 {[%clk 0:12:57]} 49. Bg5 {[%clk
0:13:51]} 49... Rc8 {[%clk 0:12:45]} 50. Bd2 {[%clk 0:12:00]} 50... Ra8 {[%clk
0:13:14]} 51. Rf1 {[%clk 0:12:09]} 51... Ra6 {[%clk 0:10:14]} 52. Rhf2 {[%clk
0:08:10]} 52... Ra7 {[%clk 0:11:55]} 53. Rf4 {[%clk 0:07:01]} 53... Bh6 {[%clk
0:08:08]} 54. Rxe4 {[%clk 0:05:03]} 54... Bxd2 {[%clk 0:05:50]} 55. Re2 {[%clk
0:03:03]} 55... c3 {[%clk 0:07:53]} 56. bxc3 {[%clk 0:03:32]} 56... Bxc3 {[%clk
0:08:17]} 57. e6 {[%clk 0:03:12]} 57... Re7 {[%clk 0:08:42]} 58. Kf4 {[%clk
0:03:23]} 58... Bxd4 {[%clk 0:08:39]} 59. Rd1 {[%clk 0:02:24]} 59... Bc5 {[%clk
0:09:02]} 60. Rxd5 {[%clk 0:02:30]} 60... Bxa3 {[%clk 0:09:28]} 61. Rxb5 {[%clk
0:02:56]} 61... Bb4 {[%clk 0:08:49]} 62. Kg5 {[%clk 0:02:00]} 62... Kg7 {[%clk
0:09:12]} 63. Rd5 {[%clk 0:00:56]} 63... Bc3 {[%clk 0:09:31]} 64. Rd7 {[%clk
0:01:01]} 64... Bf6+ {[%clk 0:09:45]} 65. Kg4 {[%clk 0:00:55]} 65... Kf8 {[%clk
0:07:57]} 66. Re4 {[%clk 0:01:10]} 66... Ke8 {[%clk 0:07:37]} 67. Rd5 {[%clk
0:00:37]} 67... Ra7 {[%clk 0:07:18]} 68. Rf4 {[%clk 0:00:45]} 68... Ke7 {[%clk
0:05:47]} 69. Rd7+ {[%clk 0:00:38]} 69... Rxd7 {[%clk 0:06:15]} 70. exd7 {[%clk
0:-1:-45]} 70... Bb2 {[%clk 0:04:24]} 71. Rf7+ {[%clk 0:01:23]} 71... Kd8 {[%clk
0:04:53]} 72. Kf4 {[%clk 0:-1:-14]} 72... a4 {[%clk 0:01:47]} 73. Ke4 {[%clk
0:01:32]} 73... Kc7 {[%clk 0:01:52]} 74. Kd5 {[%clk 0:01:26]} 74... Bc1 {[%clk
0:02:01]} 75. Ke6 {[%clk 0:01:14]} 75... Bg5 {[%clk 0:02:04]} 76. Rf8 {[%clk
0:01:04]} 76... Kc6 {[%clk 0:00:46]} 77. Ra8 {[%clk 0:00:33]} 77... Kb5 {[%clk
0:01:04]} 78. Kd5 {[%clk 0:00:39]} 78... Kb4 {[%clk 0:01:21]} 79. Kd4 {[%clk
0:00:41]} 79... Kb3 {[%clk 0:00:40]} 80. Kd3 {[%clk 0:01:09]} 80... a3 {[%clk
0:00:55]} 81. Rb8+ {[%clk 0:01:11]} 81... Ka2 {[%clk 0:01:21]} 82. Kc2 {[%clk
0:01:32]} 82... Be7 {[%clk 0:01:29]} 83. d8=Q Bxd8 {[%clk 0:01:57]} 84. Rxd8
{[%clk 0:01:32]} 84... g5 {[%clk 0:02:22]} 85. Rg8 {[%clk 0:01:50]} 85... Ka1
{[%clk 0:02:15]} 86. Rxg5 {[%clk 0:02:14]} 86... Ka2 {[%clk 0:02:36]} 87. Ra5
{[%clk 0:02:33]} 1-0

[Variant "Standard"]
[Site "Europe Echecs"]